fUST/lending_fUST_20251110
["ID","MTS","AMOUNT","RATE_DAILY","PERIOD"]
[393538801,1762781230179,-1038.383699,0.000248,7]
[393538802,1762781230205,-1038.383699,0.000248,7]
[393538803,1762781230229,-242.348322,0.000248,7]
[393538804,1762781230255,-752.779915,0.000248,7]
[393538805,1762781230281,-752.779915,0.000248,7]
[393538806,1762781230307,-752.779915,0.000248,7]
[393538807,1762781230333,-752.779915,0.000248,7]
[393538808,1762781230356,-752.779915,0.000248,7]
[393538809,1762781230381,-752.779915,0.000248,7]
[393538810,1762781230409,-752.779915,0.000248,7]
[393538811,1762781230434,-752.779915,0.000248,7]
[393538812,1762781230459,-151.0,0.000248,7]
[393538813,1762781230484,-151.0,0.000248,7]
[393538814,1762781230511,-2827.906458,0.000248,7]
[393538815,1762781230537,-2827.906458,0.000248,7]
[393538816,1762781230561,-758.835944,0.000248,7]
[393538817,1762781230587,-5821.339106,0.000248,7]
[393538818,1762781230613,-758.835944,0.000248,7]
[393538819,1762781230638,-5821.339106,0.000248,7]
[393538820,1762781230669,-2827.906458,0.000248,7]
[393538821,1762781230694,-2827.906458,0.000248,7]
[393538822,1762781230717,-758.835944,0.000248,7]
[393538823,1762781230744,-5821.339106,0.000248,7]
[393538824,1762781230768,-758.835944,0.000248,7]
[393538825,1762781230793,-5821.339106,0.000248,7]
[393538826,1762781230820,-2827.906458,0.000248,7]
[393538827,1762781230845,-2827.906458,0.000248,7]
[393538828,1762781230871,-5821.339106,0.000248,7]
[393538829,1762781230897,-758.835944,0.000248,7]
[393538830,1762781230923,-5821.339106,0.000248,7]
[393538831,1762781230949,-758.835944,0.000248,7]
[393538832,1762781230975,-2827.906458,0.000248,7]
[393538833,1762781231001,-5821.339106,0.000248,7]
[393538834,1762781231028,-2827.906458,0.000248,7]
[393538835,1762781231054,-758.835944,0.000248,7]
[393538836,1762781231082,-5821.339106,0.000248,7]
[393538837,1762781231106,-758.835944,0.000248,7]
[393538838,1762781231131,-431.035028,0.0002489,10]
[393538839,1762781231154,-151.0,0.000249,7]
[393538840,1762781231178,-151.0,0.000249,7]
[393538841,1762781231202,-151.0,0.000249,7]
[393538842,1762781231227,-151.0,0.000249,7]
[393538843,1762781231251,-151.0,0.000249,7]
[393538844,1762781231275,-151.0,0.000249,7]
[393538845,1762781231300,-151.440977,0.000249,7]
[393538846,1762781231325,-151.0,0.000249,7]
[393538847,1762781231349,-234.773306,0.000249,7]
[393538848,1762781231374,-234.773306,0.000249,7]
[393538849,1762781231398,-234.773306,0.000249,7]
[393538850,1762781231428,-234.773306,0.000249,7]
[393538851,1762781231453,-151.0,0.000249,7]
[393538852,1762781231478,-300.406997,0.000249,7]
[393538853,1762781231502,-300.406997,0.000249,7]
[393538854,1762781231526,-300.406997,0.000249,7]
[393538855,1762781231551,-300.406997,0.000249,7]
[393538856,1762781231666,-151.0,0.000249,7]
[393538857,1762781231695,-151.0,0.000249,7]
[393538858,1762781231722,-151.0,0.000249,7]
[393538859,1762781231748,-624.097741,0.000249,7]
[393538860,1762781231773,-624.097741,0.000249,7]
[393538861,1762781231799,-151.0,0.000249,7]
[393538862,1762781231830,-624.097741,0.000249,7]
[393538863,1762781231855,-624.097741,0.000249,7]
[393538864,1762781231880,-151.0,0.000249,7]
[393538865,1762781231905,-151.0,0.000249,7]
[393538866,1762781231930,-151.0,0.000249,7]
[393538867,1762781231955,-151.0,0.000249,7]
[393538868,1762781231981,-151.0,0.000249,7]
[393538869,1762781232005,-151.0,0.000249,7]
[393538870,1762781232030,-182.490684,0.000249,7]
[393538871,1762781232056,-1193.833935,0.000249,7]
[393538872,1762781232080,-1193.833935,0.000249,7]
[393538873,1762781232105,-1193.833935,0.000249,7]
[393538874,1762781232130,-1193.833935,0.000249,7]
[393538875,1762781232154,-151.0,0.000249,7]
[393538876,1762781232179,-1193.833935,0.000249,7]
[393538877,1762781232203,-151.0,0.000249,7]
[393538878,1762781232228,-1193.833935,0.000249,7]
[393538879,1762781232252,-1193.833935,0.000249,7]
[393538880,1762781232278,-1193.833935,0.000249,7]
[393538881,1762781232308,-151.0,0.000249,7]
[393538882,1762781232332,-218.23464,0.000249,7]
[393538883,1762781232357,-151.0,0.000249,7]
[393538884,1762781232381,-151.0,0.000249,7]
[393538885,1762781232407,-151.0,0.000249,7]
[393538886,1762781232432,-151.0,0.000249,7]
[393538887,1762781232457,-151.0,0.000249,7]
[393538888,1762781232482,-151.0,0.000249,7]
[393538889,1762781232508,-151.0,0.000249,7]
[393538890,1762781232532,-151.0,0.000249,7]
[393538891,1762781232557,-151.0,0.000249,7]
[393538892,1762781232581,-154.054456,0.000249,7]
[393538893,1762781232606,-1043.72597,0.000249,7]
[393538894,1762781232631,-1043.72597,0.000249,7]
[393538895,1762781232656,-1043.72597,0.000249,7]
[393538896,1762781232679,-1043.72597,0.000249,7]
[393538897,1762781232704,-151.0,0.000249,7]
[393538898,1762781232729,-414.140533,0.000249,7]
[393538899,1762781232754,-414.140533,0.000249,7]
[393538900,1762781232777,-414.140533,0.000249,7]
[393538901,1762781232803,-414.140533,0.000249,7]
[393538902,1762781232829,-151.0,0.000249,7]
[393538903,1762781232855,-151.0,0.000249,7]
[393538904,1762781232880,-151.0,0.000249,7]
[393538905,1762781232906,-151.0,0.000249,7]
[393538906,1762781232930,-576.509757,0.000249,7]
[393538907,1762781232955,-576.509757,0.000249,7]
[393538908,1762781232980,-576.509757,0.000249,7]
[393538909,1762781233006,-1072.912752,0.000249,7]
[393538910,1762781233031,-576.509757,0.000249,7]
[393538911,1762781233058,-1072.912752,0.000249,7]
[393538912,1762781233089,-1038.383699,0.000249,7]
[393538913,1762781233114,-152.080367,0.000249,7]
[393538914,1762781233140,-1072.912752,0.000249,7]
[393538915,1762781233174,-1038.383699,0.000249,7]
[393538916,1762781233202,-1038.383699,0.000249,7]
[393538917,1762781233233,-1072.912752,0.000249,7]
[393538918,1762781233261,-151.0,0.000249,7]
[393538919,1762781233295,-1038.383699,0.000249,7]
[393538920,1762781233321,-752.779915,0.000249,7]
[393538921,1762781233347,-752.779915,0.000249,7]
[393538922,1762781233372,-752.779915,0.000249,7]
[393538923,1762781233397,-752.779915,0.000249,7]
[393538924,1762781233428,-2827.906458,0.000249,7]
[393538925,1762781233453,-758.835944,0.000249,7]
[393538926,1762781233480,-5821.339106,0.000249,7]
[393538927,1762781233507,-2827.906458,0.000249,7]
[393538928,1762781233533,-5821.339106,0.000249,7]
[393538929,1762781233558,-758.835944,0.000249,7]
[393538930,1762781233583,-2827.906458,0.000249,7]
[393538931,1762781233611,-5821.339106,0.000249,7]
[393538932,1762781233635,-758.835944,0.000249,7]
[393538933,1762781233661,-2827.906458,0.000249,7]
[393538934,1762781233687,-5821.339106,0.000249,7]
[393538935,1762781233713,-758.835944,0.000249,7]
[393538936,1762781233831,-3477.75,0.00025,30]
[393538937,1762781233858,-1000.0,0.00025,8]
[393538938,1762781233886,-151.0,0.00025,7]
[393538939,1762781233913,-246.445773,0.00025,7]
[393538940,1762781233940,-151.0,0.00025,7]
[393538941,1762781233967,-151.0,0.00025,7]
[393538942,1762781233996,-151.0,0.00025,7]
[393538943,1762781234023,-151.0,0.00025,7]
[393538944,1762781234050,-232.541224,0.00025,7]
[393538945,1762781234076,-234.773306,0.00025,7]
[393538946,1762781234103,-234.773306,0.00025,7]
[393538947,1762781234128,-234.773306,0.00025,7]
[393538948,1762781234153,-234.773306,0.00025,7]
[393538949,1762781234179,-151.0,0.00025,7]
[393538950,1762781234207,-300.406997,0.00025,7]
[393538951,1762781234236,-300.406997,0.00025,7]
[393538952,1762781234263,-300.406997,0.00025,7]
[393538953,1762781234290,-300.406997,0.00025,7]
[393538954,1762781234319,-151.0,0.00025,7]
[393538955,1762781234347,-151.0,0.00025,7]
[393538956,1762781234374,-151.0,0.00025,7]
[393538957,1762781234401,-624.097741,0.00025,7]
[393538958,1762781234432,-624.097741,0.00025,7]
[393538959,1762781234461,-162.808696,0.00025,7]
[393538960,1762781234488,-624.097741,0.00025,7]
[393538961,1762781234516,-624.097741,0.00025,7]
[393538962,1762781234543,-151.0,0.00025,7]
[393538963,1762781234570,-151.0,0.00025,7]
[393538964,1762781234596,-151.0,0.00025,7]
[393538965,1762781234622,-1193.833935,0.00025,7]
[393538966,1762781234649,-1193.833935,0.00025,7]
[393538967,1762781234675,-157.120486,0.00025,7]
[393538968,1762781234702,-1193.833935,0.00025,7]
[393538969,1762781234728,-1193.833935,0.00025,7]
[393538970,1762781234754,-151.0,0.00025,7]
[393538971,1762781234780,-151.0,0.00025,7]
[393538972,1762781234806,-151.0,0.00025,7]
[393538973,1762781234832,-151.0,0.00025,7]
[393538974,1762781234858,-200.0,0.00025,7]
[393538975,1762781234884,-200.0,0.00025,7]
[393538976,1762781234911,-200.0,0.00025,7]
[393538977,1762781234938,-200.0,0.00025,7]
[393538978,1762781234964,-200.0,0.00025,7]
[393538979,1762781234993,-151.0,0.00025,7]
[393538980,1762781235021,-151.0,0.00025,7]
[393538981,1762781235048,-300.913219,0.00025,7]
[393538982,1762781235075,-151.0,0.00025,7]
[393538983,1762781235104,-151.0,0.00025,7]
[393538984,1762781235130,-151.0,0.00025,7]
[393538985,1762781235157,-1043.72597,0.00025,7]
[393538986,1762781235182,-1043.72597,0.00025,7]
[393538987,1762781235210,-1043.72597,0.00025,7]
[393538988,1762781235237,-1043.72597,0.00025,7]
[393538989,1762781235263,-151.0,0.00025,7]
[393538990,1762781235289,-414.140533,0.00025,7]
[393538991,1762781235314,-414.140533,0.00025,7]
[393538992,1762781235339,-414.140533,0.00025,7]
[393538993,1762781235365,-414.140533,0.00025,7]
[393538994,1762781235391,-151.0,0.00025,7]
[393538995,1762781235418,-151.0,0.00025,7]
[393538996,1762781235443,-151.0,0.00025,7]
[393538997,1762781235470,-151.0,0.00025,7]
[393538998,1762781235502,-576.509757,0.00025,7]
[393538999,1762781235527,-576.509757,0.00025,7]
[393539000,1762781235553,-576.509757,0.00025,7]
[393539001,1762781235578,-1072.912752,0.00025,7]
[393539002,1762781235604,-576.509757,0.00025,7]
[393539003,1762781235631,-1072.912752,0.00025,7]
[393539004,1762781235659,-1038.383699,0.00025,7]
[393539005,1762781235687,-1072.912752,0.00025,7]
[393539006,1762781235715,-1038.383699,0.00025,7]
[393539007,1762781235744,-1038.383699,0.00025,7]
[393539008,1762781235769,-151.0,0.00025,7]
[393539009,1762781235796,-1072.912746,0.00025,7]
[393539010,1762781235824,-1038.383704,0.00025,7]
[393539011,1762781235851,-752.779915,0.00025,7]
[393539012,1762781235879,-752.779915,0.00025,7]
[393539013,1762781235907,-752.779915,0.00025,7]
[393539014,1762781236021,-752.779912,0.00025,7]
[393539015,1762781236050,-2827.906458,0.00025,7]
[393539016,1762781236077,-758.835944,0.00025,7]
[393539017,1762781236105,-5821.339106,0.00025,7]
[393539018,1762781236132,-2827.906458,0.00025,7]
[393539019,1762781236161,-5821.339106,0.00025,7]
[393539020,1762781236186,-758.835944,0.00025,7]
[393539021,1762781236219,-2827.906458,0.00025,7]
[393539022,1762781236249,-5821.339106,0.00025,7]
[393539023,1762781236276,-758.835944,0.00025,7]
[393539024,1762781236303,-2827.906455,0.00025,7]
[393539025,1762781236337,-5821.33910386,0.00025,7]
[393539026,1762781236363,-758.83594,0.00025,7]
[393539027,1762781236390,-560.71,0.000251,14]
[393539028,1762781236418,-15872.86,0.000252,7]
[393539029,1762781236447,-407.15,0.000259,7]
[393539030,1762781236472,-1000.0,0.00026,9]
[393539031,1762781236501,-560.71,0.000263,14]
[393539032,1762781236528,-15872.86,0.000264,7]
[393539033,1762781236553,-151.0,0.000264,7]
[393539034,1762781236578,-226.170498,0.000264,7]
[393539035,1762781236604,-262.770703,0.000264,7]
[393539036,1762781236629,-151.0,0.000264,7]
[393539037,1762781236656,-151.0,0.000264,7]
[393539038,1762781236681,-234.773306,0.000264,7]
[393539039,1762781236707,-234.773306,0.000264,7]
[393539040,1762781236733,-234.773306,0.000264,7]
[393539041,1762781236759,-234.773316,0.000264,7]
[393539042,1762781236785,-170.37666,0.000264,7]
[393539043,1762781236812,-300.406997,0.000264,7]
[393539044,1762781236839,-300.406997,0.000264,7]
[393539045,1762781236866,-300.406997,0.000264,7]
[393539046,1762781236892,-300.406997,0.000264,7]
[393539047,1762781236921,-151.0,0.000264,7]
[393539048,1762781236949,-151.0,0.000264,7]
[393539049,1762781236976,-624.097741,0.000264,7]
[393539050,1762781237005,-151.0,0.000264,7]
[393539051,1762781237033,-624.097741,0.000264,7]
[393539052,1762781237060,-624.097741,0.000264,7]
[393539053,1762781237088,-624.097741,0.000264,7]
[393539054,1762781237114,-151.0,0.000264,7]
[393539055,1762781237139,-151.0,0.000264,7]
[393539056,1762781237164,-211.37742,0.000264,7]
[393539057,1762781237189,-1193.833935,0.000264,7]
[393539058,1762781237214,-1193.833935,0.000264,7]
[393539059,1762781237239,-1193.833935,0.000264,7]
[393539060,1762781237266,-1193.833931,0.000264,7]
[393539061,1762781237291,-151.0,0.000264,7]
[393539062,1762781237317,-151.0,0.000264,7]
[393539063,1762781237342,-151.0,0.000264,7]
[393539064,1762781237368,-215.795092,0.000264,7]
[393539065,1762781237393,-151.0,0.000264,7]
[393539066,1762781237420,-151.0,0.000264,7]
[393539067,1762781237447,-279.587211,0.000264,7]
[393539068,1762781237475,-156.462676,0.000264,7]
[393539069,1762781237502,-151.0,0.000264,7]
[393539070,1762781237528,-1043.72597,0.000264,7]
[393539071,1762781237553,-1043.72597,0.000264,7]
[393539072,1762781237579,-1043.72597,0.000264,7]
[393539073,1762781237608,-1043.72597,0.000264,7]
[393539074,1762781237632,-151.0,0.000264,7]
[393539075,1762781237658,-414.140533,0.000264,7]
[393539076,1762781237684,-414.140533,0.000264,7]
[393539077,1762781237708,-414.140533,0.000264,7]
[393539078,1762781237735,-414.140542,0.000264,7]
[393539079,1762781237764,-1541.0,0.00026413,7]
[393539080,1762781237791,-338.14632524,0.00026521,14]
[393539081,1762781237819,-1000.0,0.00027,10]
[393539082,1762781237850,-407.15,0.00027,7]
[393539083,1762781237876,-164.0,0.00027,7]
[393539084,1762781237902,-229.40948737,0.00027257,9]
[393539085,1762781237928,-515.83729706,0.00027257,9]
[393539086,1762781237954,-754.31261101,0.00027336,13]
[393539087,1762781237983,-515.83729706,0.00027336,13]
[393539088,1762781238012,-564.28255744,0.0002739,7]
[393539089,1762781238128,-292.776704,0.00027397,31]
[393539090,1762781238156,-532.701495,0.00027397,31]
[393539091,1762781238181,-532.701495,0.00027397,31]
[393539092,1762781238207,-532.701495,0.00027397,31]
[393539093,1762781238231,-532.701495,0.00027397,31]
[393539094,1762781238258,-532.701495,0.00027397,31]
[393539095,1762781238284,-532.701495,0.00027397,31]
[393539096,1762781238308,-532.701495,0.00027397,31]
[393539097,1762781238332,-532.701495,0.00027397,31]
[393539098,1762781238356,-532.701495,0.00027397,31]
[393539099,1762781238380,-532.701495,0.00027397,31]
[393539100,1762781238407,-532.701495,0.00027397,31]
[393539101,1762781238434,-532.701495,0.00027397,31]
[393539102,1762781238459,-532.701495,0.00027397,31]
[393539103,1762781238484,-532.701495,0.00027397,31]
[393539104,1762781238509,-532.701495,0.00027397,31]
[393539105,1762781238533,-532.701495,0.00027397,31]
[393539106,1762781238557,-532.701495,0.00027397,31]
[393539107,1762781238580,-532.701495,0.00027397,31]
[393539108,1762781238605,-532.701495,0.00027397,31]
[393539109,1762781238629,-532.701493,0.00027397,31]
[393539110,1762781238654,-754.31261101,0.00027415,16]
[393539111,1762781238681,-515.83729706,0.00027415,16]
[393539112,1762781238707,-754.31261101,0.00027493,20]
[393539113,1762781238734,-515.83729706,0.00027493,20]
[393539114,1762781238760,-754.31261101,0.00027572,24]
[393539115,1762781238785,-515.83729706,0.00027572,24]
[393539116,1762781238811,-250.0,0.000276,7]
[393539117,1762781238837,-151.0,0.00027611,31]
[393539118,1762781238863,-288.51092008,0.00027615,30]
[393539119,1762781238889,-186.0,0.00027616,14]
[393539120,1762781238915,-12500.0,0.0002762,7]
[393539121,1762781238942,-300.406997,0.0002762,31]
[393539122,1762781238970,-300.406997,0.0002762,31]
[393539123,1762781238996,-300.406997,0.0002762,31]
[393539124,1762781239023,-300.40700605,0.0002762,31]
[393539125,1762781239052,-151.0,0.0002762,31]
[393539126,1762781239079,-151.0,0.0002762,31]
[393539127,1762781239106,-624.097741,0.0002762,31]
[393539128,1762781239135,-151.0,0.0002762,31]
[393539129,1762781239161,-624.097741,0.0002762,31]
[393539130,1762781239187,-624.097741,0.0002762,31]
[393539131,1762781239216,-624.097746,0.0002762,31]
[393539132,1762781239244,-151.0,0.0002762,31]
[393539133,1762781239272,-151.0,0.0002762,31]
[393539134,1762781239301,-151.0,0.0002762,31]
[393539135,1762781239328,-151.0,0.0002762,31]
[393539136,1762781239354,-151.0,0.0002762,31]
[393539137,1762781239380,-193.337563,0.0002762,31]
[393539138,1762781239407,-1043.72597,0.0002762,31]
[393539139,1762781239437,-1043.72597,0.0002762,31]
[393539140,1762781239465,-1043.72597,0.0002762,31]
[393539141,1762781239492,-1043.72596,0.0002762,31]
[393539142,1762781239518,-12500.0,0.00027628,7]
[393539143,1762781239545,-12500.0,0.00027637,7]
[393539144,1762781239569,-12500.0,0.00027646,7]
[393539145,1762781239594,-754.31261101,0.00027651,28]
[393539146,1762781239619,-515.83729706,0.00027651,28]
[393539147,1762781239643,-12500.0,0.00027655,7]
[393539148,1762781239667,-12500.0,0.00027664,7]
[393539149,1762781239691,-12500.0,0.00027664,7]
[393539150,1762781239715,-12500.0,0.00027672,7]
[393539151,1762781239740,-12500.0,0.00027672,7]
[393539152,1762781239764,-288.51092005,0.00027678,17]
[393539153,1762781239790,-12500.0,0.00027681,7]
[393539154,1762781239816,-12500.0,0.00027681,7]
[393539155,1762781239841,-12500.0,0.0002769,7]
[393539156,1762781239867,-12500.0,0.0002769,7]
[393539157,1762781239893,-12500.0,0.0002769,7]
[393539158,1762781239918,-12500.0,0.0002769,7]
[393539159,1762781239943,-12500.0,0.0002769,7]
[393539160,1762781239968,-12500.0,0.0002769,7]
[393539161,1762781239993,-250.0,0.000277,7]
[393539162,1762781240114,-250.4,0.000277,7]
[393539163,1762781240143,-754.31261101,0.00027729,31]
[393539164,1762781240169,-515.83729706,0.00027729,31]
[393539165,1762781240196,-754.31261101,0.00027808,35]
[393539166,1762781240221,-515.83729706,0.00027808,35]
[393539167,1762781240246,-754.31261101,0.00027887,39]
[393539168,1762781240272,-515.83729706,0.00027887,39]
[393539169,1762781240303,-600.0,0.00027944,30]
[393539170,1762781240327,-754.31261101,0.00027966,42]
[393539171,1762781240352,-515.83729706,0.00027966,42]
[393539172,1762781240376,-1000.0,0.00028,28]
[393539173,1762781240402,-517.0,0.00028,14]
[393539174,1762781240431,-288.51092005,0.00028007,32]
[393539175,1762781240455,-754.31261101,0.00028044,46]
[393539176,1762781240478,-515.83729706,0.00028044,46]
[393539177,1762781240504,-164.0312576,0.00028068,30]
[393539178,1762781240529,-407.15,0.000281,7]
[393539179,1762781240553,-754.31261101,0.00028123,50]
[393539180,1762781240577,-515.83729706,0.00028123,50]
[393539181,1762781240602,-174.0,0.00028164,28]
[393539182,1762781240626,-754.31261101,0.00028202,54]
[393539183,1762781240650,-515.83729706,0.00028202,54]
[393539184,1762781240674,-754.31261101,0.0002828,57]
[393539185,1762781240703,-515.83729706,0.0002828,57]
[393539186,1762781240729,-288.51092005,0.00028336,48]
[393539187,1762781240755,-754.31261101,0.00028359,61]
[393539188,1762781240779,-515.83729706,0.00028359,61]
[393539189,1762781240806,-429.29870056,0.00028433,30]
[393539190,1762781240831,-150.0,0.00028433,30]
[393539191,1762781240855,-754.31261101,0.00028438,65]
[393539192,1762781240882,-515.83729706,0.00028438,65]
[393539193,1762781240907,-56653.60589529,0.000285,7]
[393539194,1762781240936,-331.80534282,0.00028501,56]
[393539195,1762781240963,-754.31261101,0.00028516,69]
[393539196,1762781240992,-515.83729706,0.00028516,69]
[393539197,1762781241018,-754.31261101,0.00028595,72]
[393539198,1762781241043,-515.83729706,0.00028595,72]
[393539199,1762781241069,-517.0,0.00028624,14]
[393539200,1762781241094,-288.51092005,0.00028665,63]
[393539201,1762781241120,-754.31261101,0.00028674,76]
[393539202,1762781241145,-515.83729706,0.00028674,76]
[393539203,1762781241172,-316.0,0.00028712,14]
[393539204,1762781241197,-754.31261101,0.00028752,80]
[393539205,1762781241223,-515.83729706,0.00028752,80]
[393539206,1762781241248,-165.0,0.00028767,14]
[393539207,1762781241274,-165.9026714,0.00028789,30]
[393539208,1762781241300,-170.66715155,0.000288,7]
[393539209,1762781241325,-754.31261101,0.00028831,83]
[393539210,1762781241350,-515.83729706,0.00028831,83]
[393539211,1762781241375,-754.31261101,0.0002891,87]
[393539212,1762781241403,-515.83729706,0.0002891,87]
[393539213,1762781241431,-754.31261101,0.00028989,91]
[393539214,1762781241456,-515.83729706,0.00028989,91]
[393539215,1762781241482,-288.51092005,0.00028994,79]
[393539216,1762781241511,-1000.0,0.00029,29]
[393539217,1762781241536,-1000.0,0.00029,7]
[393539218,1762781241562,-124339.72552052,0.00029,10]
[393539219,1762781244758,3904467.34973234,0.00037171,20]
[393539221,1762781250664,-567.24,0.00022103,10]
[393539222,1762781250692,-472.7,0.00022103,10]
[393539223,1762781250742,-2343.70126929,0.00029,10]
[393539224,1762781250768,-399.99776637,0.00029,10]
[393539225,1762781250794,-754.31261101,0.00029067,95]
[393539226,1762781250820,-515.83729706,0.00029067,95]
[393539227,1762781250845,-754.31261101,0.00029146,98]
[393539228,1762781250871,-515.83729706,0.00029146,98]
[393539229,1762781250896,-677.89,0.0002916,30]
[393539230,1762781250922,-391.7808599,0.00029177,30]
[393539231,1762781250949,-394.7912761,0.00029177,30]
[393539232,1762781250975,-394.7912761,0.00029177,30]
[393539233,1762781251001,-394.7912761,0.00029177,30]
[393539234,1762781251028,-394.7912761,0.00029177,30]
[393539235,1762781251058,-394.7912761,0.00029177,30]
[393539236,1762781251084,-394.7912761,0.00029177,30]
[393539237,1762781251109,-394.7912761,0.00029177,30]
[393539238,1762781251135,-786.7111033,0.00029177,30]
[393539239,1762781251160,-394.7912761,0.00029177,30]
[393539240,1762781251185,-364.687114,0.00029177,30]
[393539241,1762781251211,-407.15,0.000292,7]
[393539242,1762781251239,-754.31261101,0.00029225,102]
[393539243,1762781251265,-515.83729706,0.00029225,102]
[393539244,1762781251290,-754.31261101,0.00029303,106]
[393539245,1762781251316,-515.83729706,0.00029303,106]
[393539246,1762781251341,-288.51092005,0.00029323,94]
[393539247,1762781251366,-754.31261101,0.00029382,110]
[393539248,1762781251392,-515.83729706,0.00029382,110]
[393539249,1762781251419,-427.21,0.000294,14]
[393539250,1762781251444,-160.0,0.00029432,7]
[393539251,1762781251470,-11485.07313682,0.0002947,20]
[393539252,1762781251497,-13937.15,0.000296,7]
[393539253,1762781251523,-1954.0,0.00029602,30]
[393539254,1762781251551,-153.0,0.00029651,30]
[393539255,1762781251576,-153.0,0.00029651,30]
[393539256,1762781251600,-153.0,0.00029651,30]
[393539257,1762781251625,-288.51092005,0.00029652,110]
[393539258,1762781251651,-517.0,0.00029768,14]
[393539259,1762781251675,-277.0,0.00029808,14]
[393539260,1762781251701,-333.9773776,0.00029918,30]
[393539261,1762781251726,-164.0312576,0.00029918,30]
[393539262,1762781251837,-164.0312576,0.00029918,30]
[393539263,1762781251861,-700.0,0.00029939,7]
[393539264,1762781251886,-160.0,0.00029973,8]
[393539265,1762781251910,-2000.0,0.0002999,7]
[393539266,1762781251936,-2000.0,0.00029991,7]
[393539267,1762781251962,-2000.0,0.00029991,7]
[393539268,1762781251987,-2000.0,0.00029992,7]
[393539269,1762781252013,-2000.0,0.00029992,7]
[393539270,1762781252040,-2000.0,0.00029993,7]
[393539271,1762781252065,-2000.0,0.00029994,7]
[393539272,1762781252090,-2000.0,0.00029994,7]
[393539273,1762781252114,-2000.0,0.00029995,7]
[393539274,1762781252139,-2000.0,0.00029995,7]
[393539275,1762781252165,-2000.0,0.00029996,7]
[393539276,1762781252189,-2000.0,0.00029996,7]
[393539277,1762781252214,-2000.0,0.00029997,7]
[393539278,1762781252239,-2000.0,0.00029997,7]
[393539279,1762781252264,-2000.0,0.00029998,7]
[393539280,1762781252293,-2000.0,0.00029998,7]
[393539281,1762781252328,-2000.0,0.00029999,7]
[393539282,1762781252353,-1370.86693596,0.00029999,7]
[393539283,1762781252378,-366999.12780518,0.0003,30]
[393539284,1762781252403,-477.80729836,0.0003,30]
[393539285,1762781252434,-88546.64770466,0.0003,30]
[393539286,1762781252461,-10000.0,0.0003,10]
[393539287,1762781252486,-409.00252177,0.0003,10]
[393539288,1762781252514,-350960.11500234,0.0003,30]
[393539289,1762781254773,-37253.70126576,0.0003,30]
[393539290,1762781254800,-3551.15641974,0.0003,60]
[393539291,1762781254828,-560.71,0.0003,14]
[393539292,1762781254855,-160.0,0.0003,30]
[393539293,1762781254883,-431.035028,0.0003,60]
[393539294,1762781254912,-431.035028,0.0003,30]
[393539295,1762781254938,-1063.04,0.0003,30]
[393539296,1762781254964,-399.99776637,0.0003,30]
[393539297,1762781254989,-500.0,0.00030037,7]
[393539298,1762781255020,-15872.86,0.000301,7]
[393539299,1762781255046,-500.0,0.00030144,7]
[393539300,1762781255072,-700.0,0.00030152,7]
[393539301,1762781255097,-190.296293,0.00030167,60]